Cogmind - Beta 15 @@@ ROGUE MODE // 2025.08.10 @ 18:33:11 Player: H3-RMN Result: Destroyed by 01-MTF with 01-MTF's Shockpuncher Performance ------------- Evolutions (3) 1500 Regions Visited (10) 2000 Robots Destroyed (261) 1305 Value Destroyed (8278) 8278 Prototype IDs (68) 1360 Alien Tech Used (0) 0 Bonus (1637) 1637 TOTAL SCORE: 16080 Bonus ------- High Alert Combat Kills 1597 Follower Combat Kills 36 Aligned with FarCom 300 Friendly Fire -296 Cogmind --------- Core Integrity 0/700 Matter 246/300 Energy 29/100 System Corruption 23% Temperature Warm (165) Movement Core (1550) Ox30 Location -7/Recycling Parts ------- > --- POWER (1) -------- (None) > --- PROPULSION (3) --- (None) > --- UTILITY (6) ------ Armored Scrap Engine Improved Heat Sink Coolant Injector Huge Storage Unit Light Regenerative Plating > --- WEAPON (3) ------- Precision Grenade Launcher > --- INVENTORY (25) --- Armored Huge Wheel Improved Heat Sink High-capacity Matter Pod (200) Gravity Neutralizer Transmission Jammer Improved Weapon Shielding Medium Reactive Plating Medium Reactive Plating Medium Reactive Plating Hacking Suite Hacking Suite Authchip [Propulsion] Authchip [Processor] Authchip [Weapon] Improved Trap Extractor (5/6 Dirty Bomb) Advanced Beam Rifle Advanced Beam Rifle Heavy Particle Cannon Firepult Advanced EMP Blaster Advanced EMP Blaster Improved Datajack Peak State ------------ > --- POWER ------------ Reinforced Deuterium Engine > --- PROPULSION ------- Armored Treads Armored Wheel Armored Wheel > --- UTILITY ---------- Armored Scrap Engine Improved Heat Sink Coolant Injector Huge Storage Unit Light Regenerative Plating > --- WEAPON ----------- Advanced Beam Rifle Improved Assault Rifle Precision Assault Rifle > --- INVENTORY -------- Armored Huge Wheel Improved Heat Sink High-capacity Matter Pod Gravity Neutralizer Transmission Jammer Improved Weapon Shielding Medium Reactive Plating Medium Reactive Plating Medium Reactive Plating Hacking Suite Hacking Suite Authchip [Propulsion] Authchip [Processor] Authchip [Weapon] Improved Trap Extractor Advanced Beam Rifle Advanced Beam Rifle Heavy Particle Cannon Firepult Advanced EMP Blaster Advanced EMP Blaster Precision Grenade Launcher Improved Datajack [Rating: 67] Favorites ----------- Power Reinforced Deuterium Engine Engine Reinforced Deuterium Engine Propulsion Armored Wheel Treads Armored Treads Wheel Armored Wheel Flight Unit Improved Flight Unit Utility Huge Storage Unit Device Improved Heat Sink Storage Huge Storage Unit Processor Visual Processing Unit Hackware Hacking Suite Protection Improved Light Armor Plating Weapon Heavy Assault Rifle Energy Gun Gatling Laser Energy Cannon Advanced Beam Cannon Ballistic Gun Heavy Assault Rifle Ballistic Cannon Heavy Assault Cannon Launcher Advanced EMP Blaster Special Weapon Mining Laser Special Melee Weapon Datajack Build | -11 -10 -10 -9 -9 -9 -8 -8 -7 -7 -7 ------- Run | Yrd Mat Min Mat Min Exi Min Mat Fac Sto Rec Slots Evolved 6 | . . . 2 . . . 2 2 . . Power . | . . . . . . . . . . . Propulsion 1 | . . . . . . . 1 . . . Utility 4 | . . . 2 . . . . 2 . . Weapon 1 | . . . . . . . 1 . . . Parts Attached 127 | 7 17 4 21 . 2 4 22 17 28 5 Power 8 | 1 1 . 3 . 1 . 1 . 1 . Engine 8 | 1 1 . 3 . 1 . 1 . 1 . Core . | . . . . . . . . . . . Reactor . | . . . . . . . . . . . Propulsion 23 | 2 4 2 5 . . 1 4 2 3 . Treads 9 | 1 2 1 1 . . 1 2 . 1 . Leg . | . . . . . . . . . . . Wheel 13 | 1 2 1 3 . . . 2 2 2 . Hover . | . . . . . . . . . . . Flight 1 | . . . 1 . . . . . . . Utility 43 | 2 4 . 7 . . 1 6 9 11 3 Device 19 | 1 . . 2 . . . 2 5 6 3 Storage 5 | 1 3 . 1 . . . . . . . Processor 3 | . 1 . . . . . 1 1 . . Hackware 2 | . . . 2 . . . . . . . Protection 14 | . . . 2 . . 1 3 3 5 . Artifact . | . . . . . . . . . . . Weapon 53 | 2 8 2 6 . 1 2 11 6 13 2 Energy Gun 14 | 1 1 1 1 . . . 2 1 7 . Energy Cannon 4 | . 1 . 1 . . . . . 1 1 Ballistic Gun 22 | 1 5 . 2 . . . 6 3 5 . Ballistic Cannon 2 | . . . . . . . 1 1 . . Launcher 7 | . . 1 1 . . 2 2 . . 1 Special Weapon 1 | . 1 . . . . . . . . . Impact Weapon . | . . . . . . . . . . . Slashing Weapon . | . . . . . . . . . . . Piercing Weapon . | . . . . . . . . . . . Special Melee Weapon 3 | . . . 1 . 1 . . 1 . . Unidentified Prototypes 15 | . . . 4 . . . 3 2 5 1 Parts Lost 41 | . 3 2 3 . . . 8 5 13 7 Power 2 | . 1 . . . . . . . . 1 Propulsion 11 | . . 1 1 . . . 3 1 2 3 Utility 9 | . . . 1 . . . 1 1 6 . Weapon 19 | . 2 1 1 . . . 4 3 5 3 Highest Loss Streak 7 | . 3 2 2 . . . 3 1 4 7 To Critical Strikes . | . . . . . . . . . . . Average Backups 22 | 4 17 23 24 25 24 24 23 23 22 22 Power . | . . . 1 2 1 1 1 1 . . Propulsion 5 | 2 8 10 7 6 6 6 4 3 4 1 Utility 8 | . 3 7 6 8 8 8 8 9 9 13 Weapon 7 | 1 5 5 8 8 8 8 7 7 7 7 Tool/Special . | . . . . . . . . . . . Unused Backups 44 | . 7 1 2 1 1 . 6 5 8 13 Power 3 | . 1 . . . . . . 2 . . Propulsion 13 | . 5 . 1 . . . . 1 6 . Utility 20 | . . 1 . . . . 4 2 2 11 Weapon 8 | . 1 . 1 1 1 . 2 . . 2 Tool/Special . | . . . . . . . . . . . Average Slot Usage (%) 96 | . 99 99 99 100 100 100 97 89 93 94 Engine 9 | . 13 14 11 11 11 11 9 6 7 6 Treads 6 | . 12 11 . . . . 10 7 7 6 Wheel 16 | . 15 15 21 22 22 21 16 12 12 14 Device 8 | . 4 . 3 . . . 8 15 17 21 Storage 9 | . 14 14 11 11 11 11 9 7 7 7 Processor 5 | . 9 14 11 11 11 11 . . . . Hackware 6 | . . . 10 11 11 11 9 7 1 . Protection 8 | . . . 7 10 11 11 9 7 14 12 Energy Gun 3 | . 3 5 5 . . . 3 . 9 6 Energy Cannon 3 | . . . 6 11 4 11 2 . . . Ballistic Gun 15 | . 23 22 9 11 11 10 15 21 11 14 Peak Build Rating 67 | 7 17 17 27 27 28 29 39 53 55 67 Average Rating 33 | 4 13 16 24 26 25 28 35 48 51 57 On Entrance 26 | . 7 17 17 26 26 28 29 37 53 50 Naked Turns . | . . . . . . . . . . . Heaviest Build 131 | 15 91 92 98 98 98 100 114 131 131 118 Greatest Support 32 | 20 24 24 32 24 24 24 24 28 28 24 Greatest Overweight (x) 8 | 1 7 7 8 4 4 4 8 5 5 4 Average Overweight (x) 4 | . 3 6 3 4 3 4 4 4 4 4 Largest Inventory Capacity 25 | 8 25 25 25 25 25 25 25 25 25 25 Average Capacity 24 | 7 20 25 25 25 25 25 25 25 25 25 Most Carried 25 | 7 25 25 25 25 25 25 25 25 25 25 Average Carried 23 | 4 18 24 24 25 24 25 24 24 24 24 Final Capacity 25 | 8 25 25 25 25 25 25 25 25 25 25 Final Carried 25 | 7 25 23 25 25 25 25 24 25 25 24 Scrap Engine Consumption 4 | . . . . . . . . . . 4 Class Distribution -------------------- 43% | Mutant 27% | Scavenger-Skirmisher 15% | Skirmisher 7% | Scavenger-Mutant 3% | Scavenger-Tank Dominant Class ---------------- Mutant | -10/Materials Mutant | -10/Mines Mutant | -9/Materials Mutant | -9/Mines Mutant | -9/Exiles Mutant | -8/Mines Scavenger-Skirmisher | -8/Materials Scavenger-Skirmisher | -7/Factory Skirmisher | -7/Storage Skirmisher | -7/Recycling Resources | -11 -10 -10 -9 -9 -9 -8 -8 -7 -7 -7 ----------- Run | Yrd Mat Min Mat Min Exi Min Mat Fac Sto Rec Matter Collected 6535 | 283 578 125 627 54 . 189 1800 1428 1260 191 Remotely . | . . . . . . . . . . . Salvage Created 10635 | 93 491 127 1107 41 . 169 3241 2046 2983 337 Parts 536 | 8 28 5 75 5 . 24 161 109 104 17 Haulers Intercepted 15 | . 1 . 3 . . . 4 1 6 . Recyclers Shooed 10 | . 3 . . . . . 2 3 1 1 Parts Field Recycled . | . . . . . . . . . . . Retrieved Matter . | . . . . . . . . . . . Parts Self-Destructed . | . . . . . . . . . . . Prevented . | . . . . . . . . . . . Kills | -11 -10 -10 -9 -9 -9 -8 -8 -7 -7 -7 ------- Run | Yrd Mat Min Mat Min Exi Min Mat Fac Sto Rec Combat Hostiles Destroyed 176 | . 11 1 23 3 . 10 51 29 46 2 Guns 111 | . 10 1 11 2 . 1 27 22 35 2 Cannons 20 | . 1 . 5 1 . 1 11 1 . . AOE 40 | . . . 6 . . 8 11 6 9 . Classes Destroyed 23 | 2 6 1 3 . . 1 6 2 . 2 Worker 18 | . . . 1 . . 4 5 4 4 . Builder 10 | . . . 2 . . . 1 2 4 1 Tunneler 6 | 2 . 1 1 . . 1 . 1 . . Hauler 15 | . 1 . 3 . . . 4 1 6 . Recycler 14 | 1 . 1 . . . . 3 3 4 2 Mechanic 2 | . . . . . . . 1 . 1 . Operator 7 | . 1 . 3 . . . 3 . . . Watcher 12 | . 2 . 3 . . . 4 2 1 . Swarmer 27 | . 4 . 7 3 . 10 . 1 2 . Grunt 90 | . 5 . 9 . . . 34 16 26 . Brawler 5 | . . . . . . . 1 1 3 . Duelist 8 | . . . . . . . 3 2 3 . Protector 4 | . . . . . . . 1 1 2 . Sentry 26 | . . . 7 . . . 9 3 7 . Demolisher 1 | . . 1 . . . . . . . . Specialist 2 | . . . . . . . . 2 . . Hunter 2 | . . . . . . . 2 . . . Programmer 5 | . . . . . . . . 2 3 . Heavy 2 | . . . . . . . 1 1 . . Subdweller 2 | . 2 . . . . . . . . . Scientist 1 | . . . . . . . . . . 1 Scrapper 2 | . . . . . . . . . . 2 Zionite 1 | . . . . . . 1 . . . . Best Kill Streak 20 | 3 3 1 8 3 . 4 20 6 11 3 Combat Bots Only 16 | . 3 1 4 3 . 4 16 5 8 2 Max Kills in Single Turn 4 | 1 1 1 3 1 . 4 3 4 2 1 Gunslinging 1 | . . . 1 . . . . 1 1 . Exploded 3 | . . . 2 . . 3 2 3 2 . Melee . | . . . . . . . . . . . Uniques/NPCs Destroyed . | . . . . . . . . . . . Combat | -11 -10 -10 -9 -9 -9 -8 -8 -7 -7 -7 -------- Run | Yrd Mat Min Mat Min Exi Min Mat Fac Sto Rec Hostile Shots Fired 1179 | . 65 5 92 4 . 19 226 228 420 120 Missed 369 | . 20 . 30 . . 9 63 73 143 31 Hits 810 | . 45 5 62 4 . 10 163 155 277 89 Melee 19 | . . . . . . . 5 1 13 . Projectile 791 | . 45 5 62 4 . 10 158 154 264 89 AOE 10 | . 2 8 . . . . . . . . Critical Strikes 25 | . . . 2 . . . 9 5 6 3 Part Disruptions 7 | . . . . . . . . . . 7 Damage Taken 11722 | . 603 343 785 35 . 136 2634 2122 3626 1438 Core 1365 | . 128 67 110 17 . 7 328 98 333 277 Absorbed by Shields . | . . . . . . . . . . . Redirected to Shielding 16 | . . . . . . . . . 16 . Ignored by Resistances 164 | . . . . . . . . 164 . . Regen/Repaired (Parts) 1395 | . . . 96 . . . 34 1095 136 34 Core Remaining (%) 57 | 100 . 22 . . . 66 40 . . . Volleys Fired 563 | 5 54 5 83 3 . 15 161 95 120 22 Largest 3 | 2 2 2 2 2 . 2 3 3 3 3 Hottest 196 | 70 105 105 105 91 . 91 114 93 196 112 Shots Fired 1322 | 10 104 10 154 6 . 27 386 259 312 54 Gun 1139 | 10 96 10 111 3 . 12 305 242 299 51 Cannon 135 | . 6 . 37 3 . 12 63 10 4 . Launcher 46 | . . . 6 . . 3 18 7 9 3 Special 2 | . 2 . . . . . . . . . Kinetic 917 | 5 90 2 84 3 . 12 286 252 150 33 Thermal 336 | 5 10 4 50 3 . 12 81 . 153 18 Explosive 12 | . . . 6 . . 3 . . . 3 Electromagnetic 57 | . 4 4 14 . . . 19 7 9 . Robot Hit Streak 22 | 6 12 4 11 4 . 7 13 22 20 6 Robot Miss Streak 8 | 1 6 2 4 1 . 2 5 4 8 2 Penetration Max 1 | . . . . . . . . 1 1 . Secondary Targets 19 | . . 1 1 . . . 4 3 8 2 Max Gunslinging Chain 1 | . . 1 1 . . . 1 1 1 1 Shots Hit Robots 864 | 9 56 8 88 4 4 13 230 172 243 37 Core Hits 535 | 4 23 5 48 3 . 14 125 79 217 17 Critical Kills 4 | . . . 2 . . . 2 . . . Critical Parts Destroyed 4 | . 1 . 1 . . . 2 . . . Critical Strikes 15 | 1 1 . 3 . . . 9 . 1 . Burn 4 | 1 . . . . . . 2 . 1 . Meltdown 1 | . . . 1 . . . . . . . Destroy 7 | . 1 . 2 . . . 4 . . . Blast 3 | . . . . . . . 3 . . . Melee Attacks 6 | . . . . . 4 . . . 1 1 Impact . | . . . . . . . . . . . Slashing . | . . . . . . . . . . . Piercing . | . . . . . . . . . . . Sneak Attacks 6 | . . . . . 4 . . . 1 1 Combat Hostiles . | . . . . . . . . . . . Follow-up Attacks . | . . . . . . . . . . . Damage Inflicted 22480 | 114 848 131 1905 66 . 724 6409 4714 6704 865 Guns 13846 | 114 761 131 1043 25 . 99 2857 3290 4956 570 Cannons 2691 | . 87 . 519 41 . 143 1738 113 50 . Explosions 5943 | . . . 343 . . 482 1814 1311 1698 295 Melee . | . . . . . . . . . . . Ramming . | . . . . . . . . . . . Kinetic 11269 | 51 675 32 779 25 . 99 3680 3403 2144 381 Thermal 6503 | 63 112 65 665 41 . 143 1222 649 3354 189 Explosive 1420 | . . . 343 . . 482 300 . . 295 Electromagnetic 3288 | . 61 34 118 . . . 1207 662 1206 . Impact . | . . . . . . . . . . . Slashing . | . . . . . . . . . . . Piercing . | . . . . . . . . . . . Highest Corruption 23 | . . . . . . . . 9 19 23 Average Corruption 13 | . . . . . . . . 6 15 19 Corruption Purged . | . . . . . . . . . . . Corruption Blocked . | . . . . . . . . . . . Effects 141 | . . . . . . . . 31 84 26 Message Errors 31 | . . . . . . . . 5 21 5 Matter Fused 31 | . . . . . . . . 7 19 5 Heat Flow Errors 18 | . . . . . . . . 6 6 6 Energy Discharges 18 | . . . . . . . . 4 13 1 Parts Rejected 4 | . . . . . . . . . 4 . Data Loss (minor) 13 | . . . . . . . . 6 4 3 Data Loss (major) 5 | . . . . . . . . . 2 3 Misfires 5 | . . . . . . . . . 4 1 Alerts 3 | . . . . . . . . 1 1 1 Weapon Failures 13 | . . . . . . . . 2 10 1 Overload Shots . | . . . . . . . . . . . Overflow Damage 395 | . . . 25 1 . 90 187 59 3 30 Projectiles 145 | . . . 19 1 . 1 118 6 . . Explosions 250 | . . . 6 . . 89 69 53 3 30 Melee . | . . . . . . . . . . . Knockbacks 11 | . . . . . . . 11 . . . Impact . | . . . . . . . . . . . Kinetic 9 | . . . . . . . 9 . . . Secondary 2 | . . . . . . . 2 . . . Self-Inflicted Damage 484 | . . . 60 . . 48 24 42 199 111 Shots 20 | . . . 2 . . 1 3 3 8 3 Rammed . | . . . . . . . . . . . Targets Rammed . | . . . . . . . . . . . Kicked . | . . . . . . . . . . . Crushed . | . . . . . . . . . . . Highest Temperature 439 | 36 128 44 204 24 . 117 220 251 439 170 Average Temperature 61 | 16 22 21 40 12 . 38 41 62 103 36 Received Heat Transfer 3909 | . 111 9 285 . . . 1179 642 1254 429 Effects 1 | . . . . . . . . . 1 . Short Circuit 1 | . . . . . . . . . 1 . Siege Activations . | . . . . . . . . . . . Martial Activations . | . . . . . . . . . . . Shielding Activations . | . . . . . . . . . . . Robots Disrupted . | . . . . . . . . . . . Combat Hostiles . | . . . . . . . . . . . Robots Corrupted 4 | . . . . . . . 2 . 2 . Combat Hostiles 4 | . . . . . . . 2 . 2 . Parts Fried 11 | . . . . . . . 5 1 5 . Impact Corruptions . | . . . . . . . . . . . Robots Melted 2 | . . . 1 . . . . . 1 . Combat Hostiles 1 | . . . 1 . . . . . . . Parts Melted 22 | 1 . . 4 . . . 1 1 14 1 Heat Transferred 11960 | 259 259 75 1063 74 . 259 2311 350 6927 383 Parts Sabotaged . | . . . . . . . . . . . Parts Stolen . | . . . . . . . . . . . Parts Stripped . | . . . . . . . . . . . Power Chain Reactions 14 | . . . . . . . 4 2 8 . Alert | -11 -10 -10 -9 -9 -9 -8 -8 -7 -7 -7 ------- Run | Yrd Mat Min Mat Min Exi Min Mat Fac Sto Rec Maximum Alert Level 3 | . . . 1 . . . 3 3 3 1 Low Security (%) 51 | 100 100 100 57 100 . 100 32 . 6 79 Level 1 11 | . . . 42 . . . . . 19 20 Level 2 10 | . . . . . . . 10 32 25 . Level 3 26 | . . . . . . . 56 66 47 . Level 4 . | . . . . . . . . . . . Level 5 . | . . . . . . . . . . . High Security . | . . . . . . . . . . . Max Security . | . . . . . . . . . . . Sterilizations 1 | . . . . . . . 1 . . . Peak Influence 1094 | 5 130 30 289 111 . 181 1094 878 844 312 Initial 494 | . . . . 111 . . 31 494 392 312 Average 328 | 1 23 2 168 33 . 63 567 685 584 69 Influence Increases 5899 | 15 306 40 893 85 . 332 1765 1008 1422 33 Destroy 0b10 Robot/C 3360 | . 180 20 460 60 . 200 1000 560 880 . Destroy 0b10 Robot/NC 445 | 15 20 10 65 . . 25 110 70 115 15 Destroy Leader 832 | . 46 10 142 10 . 30 266 124 204 . Successful Hack 209 | . 25 . 33 . . . 31 81 39 . Select Force Hacks 120 | . . . 30 . . . 60 30 . . Disable Machine 285 | . 15 . 45 . . 30 75 45 75 . Anti-Garrison Action 150 | . . . . . . . 150 . . . Destroy Structure 183 | . 5 . 28 . . 47 43 23 19 18 Lose Combat Pursuer 315 | . 15 . 90 15 . . 30 75 90 . Influence Decreases 5886 | 15 306 37 609 372 . 249 760 1233 1484 821 Entered New Map 1785 | . . . 3 176 . . 52 594 471 489 Time Decay 3283 | 15 276 37 566 196 . 249 628 589 583 144 Lost Part 328 | . 30 . 30 . . . 80 50 130 8 Lost Ally 190 | . . . 10 . . . . . . 180 Purge Threat 300 | . . . . . . . . . 300 . Squads Dispatched 33 | . 2 . 3 . . . 10 8 10 . Investigation 7 | . . . 1 . . . 3 3 . . Extermination 4 | . . . . . . . . 2 2 . Reinforcement 15 | . 2 . 2 . . . 4 2 5 . Assault 6 | . . . . . . . 2 1 3 . Garrison 1 | . . . . . . . 1 . . . Intercept . | . . . . . . . . . . . Searches Triggered . | . . . . . . . . . . . Construction Impeded 3 | . . . . . . . 1 . 2 . Haulers Reinforced 2 | . . . . . . . . . 2 . Active Scanning Responses . | . . . . . . . . . . . Cargo Convoy Interrupts . | . . . . . . . . . . . Stealth | -11 -10 -10 -9 -9 -9 -8 -8 -7 -7 -7 --------- Run | Yrd Mat Min Mat Min Exi Min Mat Fac Sto Rec Distress Signals 8 | . 1 . 1 . . . 4 . 1 1 Communications Jammed 45 | . . . . . . . . 31 14 . Distress Signals 42 | . . . . . . . . 31 11 . Times Spotted 252 | . 24 2 40 4 . 8 65 39 63 7 Peak Tracking Total 9 | . 6 2 6 3 . 4 6 6 9 3 Tactical Retreats 15 | . 1 . 3 1 . . 2 3 5 . Traps | -11 -10 -10 -9 -9 -9 -8 -8 -7 -7 -7 ------- Run | Yrd Mat Min Mat Min Exi Min Mat Fac Sto Rec Traps Triggered 6 | . 1 . . . . . 1 2 2 . Indirectly 1 | . . . . . . . . . 1 . Trap Hack Attempts 91 | . . . 72 . . . . 19 . . Triggered . | . . . . . . . . . . . Disarmed 2 | . . . 1 . . . . 1 . . Reprogrammed 4 | . . . 3 . . . . 1 . . Reused . | . . . . . . . . . . . Traps Extracted 8 | . . . 3 5 . . . . . . Installed 2 | . . . . 2 . . . . . . Triggered . | . . . . . . . . . . . Most Traps Carried 5 | . . . 3 5 5 5 5 5 5 5 Machines | -11 -10 -10 -9 -9 -9 -8 -8 -7 -7 -7 ---------- Run | Yrd Mat Min Mat Min Exi Min Mat Fac Sto Rec Machines Disabled 20 | . 1 . 3 . . 2 6 3 5 . Max in Single Turn 2 | . 1 . 1 . . 2 2 2 1 . Garrison Access 3 | . . . . . . . 1 1 1 . Machines Repaired . | . . . . . . . . . . . Machines Dismantled . | . . . . . . . . . . . Machines Sabotaged . | . . . . . . . . . . . Overloaded Fab Kills . | . . . . . . . . . . . Hacking | -11 -10 -10 -9 -9 -9 -8 -8 -7 -7 -7 --------- Run | Yrd Mat Min Mat Min Exi Min Mat Fac Sto Rec Machines Accessed 54 | . 6 1 14 . 2 . 10 10 9 2 Terminals 34 | . 6 . 10 . . . 7 4 7 . Fabricators 1 | . . . . . . . . 1 . . Repair Stations 7 | . . . 2 . . . 1 3 1 . Recycling Units 2 | . . . . . . . . . 1 1 Scanalyzers 5 | . . . 2 . . . 2 1 . . Garrison Access 1 | . . . . . . . . 1 . . Total Hacks 205 | . 20 1 49 . 5 . 56 34 36 4 Successful 125 | . 9 1 29 . 5 . 41 22 16 2 Failed 80 | . 11 . 20 . . . 15 12 20 2 Catastrophic 12 | . 1 . 1 . . . 5 2 2 1 Database Lockouts . | . . . . . . . . . . . Manual 101 | . 19 . 31 . 1 . 28 3 17 2 Terminals 131 | . 20 . 38 . . . 36 8 29 . Fabricators 7 | . . . . . . . . 7 . . Repair Stations 27 | . . . 6 . . . 2 15 4 . Recycling Units 5 | . . . . . . . . . 3 2 Scanalyzers 26 | . . . 5 . . . 18 3 . . Garrison Access 1 | . . . . . . . . 1 . . Terminal Hacks 42 | . 2 1 8 . 5 . 11 3 10 2 Record 4 | . . . . . 4 . . . . . Part Schematic 7 | . 1 . 1 . . . 2 . 3 . Robot Schematic 1 | . . . 1 . . . . . . . Robot Analysis 3 | . 1 . 1 . . . 1 . . . Prototype ID Bank 3 | . . . 1 . . . 2 . . . Open Door 4 | . . 1 . . . . . . 3 . Open DSF 1 | . . . . . . . . 1 . . Branch Access Points 1 | . . . 1 . . . . . . . Terminal Index 1 | . . . . . . . 1 . . . Scanalyzer Index 1 | . . . . . . . 1 . . . Alert Level 1 | . . . . . . . 1 . . . Unreport Threat 2 | . . . . . . . . . 2 . Locate Traps 4 | . . . 1 . . . 1 2 . . Hauler Manifests 2 | . . . 1 . . . . . 1 . Registered Components 2 | . . . 1 . . . . . 1 . Zone Layout 2 | . . . . . . . 2 . . . Proto ID Catalog 1 | . . . . . 1 . . . . . Release Object 2 | . . . . . . . . . . 2 Fabricator Hacks 4 | . . . . . . . . 4 . . Network Status 1 | . . . . . . . . 1 . . Load Schematic 1 | . . . . . . . . 1 . . Build 2 | . . . . . . . . 2 . . Repair Station Hacks 17 | . . . 4 . . . 2 11 . . Scan Component 9 | . . . 2 . . . 1 6 . . Repair 8 | . . . 2 . . . 1 5 . . Recycling Unit Hacks 1 | . . . . . . . . . 1 . Retrieve Components 1 | . . . . . . . . . 1 . Scanalyzer 21 | . . . 4 . . . 16 1 . . Insert Component 11 | . . . 2 . . . 8 1 . . Analyze 10 | . . . 2 . . . 8 . . . Garrison Access Hacks 1 | . . . . . . . . 1 . . Seal Access 1 | . . . . . . . . 1 . . Unauthorized Hacks 39 | . 7 . 13 . . . 12 2 5 . Terminals 34 | . 7 . 12 . . . 10 . 5 . Track 3 | . . . 2 . . . 1 . . . Assimilate 1 | . . . 1 . . . . . . . Botnet 9 | . 2 . 3 . . . 2 . 2 . Operators 2 | . . . 1 . . . 1 . . . Skim 19 | . 5 . 5 . . . 6 . 3 . Fabricators 1 | . . . . . . . . 1 . . Prioritize 1 | . . . . . . . . 1 . . Repair Stations . | . . . . . . . . . . . Recycling Units . | . . . . . . . . . . . Scanalyzers 4 | . . . 1 . . . 2 1 . . Extract 4 | . . . 1 . . . 2 1 . . Garrison Access . | . . . . . . . . . . . Data Cores Recovered 2 | . . . 1 . . . 1 . . . Used 1 | . . . 1 . . . . . . . Hacking Detections 43 | . 6 . 12 . . . 9 8 7 1 Full Trace Events 5 | . . . 1 . . . 1 2 . 1 Feedback Events 1 | . . . . . . . . 1 . . Corruption 1 | . . . . . . . . 1 . . Feedback Blocked . | . . . . . . . . . . . Robot Schematics Acquired 1 | . . . 1 . . . . . . . Robots Built . | . . . . . . . . . . . Authchips . | . . . . . . . . . . . Time . | . . . . . . . . . . . Total Robot Build Rating . | . . . . . . . . . . . Part Schematics Acquired 39 | . 1 . 12 . . . 21 2 3 . Parts Built 4 | . . . . . . . . 4 . . Authchips . | . . . . . . . . . . . Time 115 | . . . . . . . . 115 . . Total Part Build Rating 12 | . . . . . . . . 12 . . Parts Repaired 8 | . . . 2 . . . 1 5 . . Time 320 | . . . 93 . . . 60 167 . . Parts Recycled . | . . . . . . . . . . . Recycled Matter . | . . . . . . . . . . . Retrieved Matter . | . . . . . . . . . . . Retrieved Components 10 | . . . . . . . . . 10 . Parts Scanalyzed 11 | . . . 2 . . . 8 1 . . Part Schematics Acquired 9 | . . . 2 . . . 7 . . . Parts Damaged 1 | . . . . . . . 1 . . . Bothacking | -11 -10 -10 -9 -9 -9 -8 -8 -7 -7 -7 ------------ Run | Yrd Mat Min Mat Min Exi Min Mat Fac Sto Rec Used RIF Installer . | . . . . . . . . . . . Robots Hacked 6 | . . . . . 4 . . . 1 1 Non-combat 3 | . . . . . 3 . . . . . Combat 3 | . . . . . 1 . . . 1 1 Robot Hacks Applied 6 | . . . . . 4 . . . 1 1 parse_system 6 | . . . . . 4 . . . 1 1 Relay Couplers Released 4 | . . . . . . . . . 4 . Programmers 4 | . . . . . . . . . 4 . Fabnet Peak Effective % . | . . . . . . . . . . . Robots Rewired . | . . . . . . . . . . . Allies Hacked . | . . . . . . . . . . . Hacks Repelled . | . . . . . . . . . . . Allies | -11 -10 -10 -9 -9 -9 -8 -8 -7 -7 -7 -------- Run | Yrd Mat Min Mat Min Exi Min Mat Fac Sto Rec Total Allies 16 | . . 3 1 2 . . . . 10 . Largest Group 10 | . . 3 1 2 2 . . . 10 9 Highest-Rated Group 173 | . . 40 10 62 62 . . . 173 157 Highest-Rated Ally 31 | . . 16 10 31 31 . . . 29 29 Total Orders 2 | . . 2 . . . . . . . . STAY 1 | . . 1 . . . . . . . . FOLLOW 1 | . . 1 . . . . . . . . Ally Attacks 23 | . . 4 . . . . . . 1 18 Total Damage 231 | . . 36 . . . . . . . 195 Kills 1 | . . . . . . . . . . 1 Allies Corrupted . | . . . . . . . . . . . Allies Melted . | . . . . . . . . . . . Intel | -11 -10 -10 -9 -9 -9 -8 -8 -7 -7 -7 ------- Run | Yrd Mat Min Mat Min Exi Min Mat Fac Sto Rec Active Infowar (turns) 7544 | 20 1660 463 2222 764 449 857 129 928 52 . Optics 6044 | . 1160 463 2222 764 449 857 129 . . . Seismic 520 | 20 500 . . . . . . . . . Jamming 980 | . . . . . . . . 928 52 . Robot Analysis Total 3 | . 1 . 1 . . . 1 . . . Derelict Logs Recovered 2 | . . 1 . 1 . . . . . . Drone Launches . | . . . . . . . . . . . Drone Recoveries . | . . . . . . . . . . . Exploration | -11 -10 -10 -9 -9 -9 -8 -8 -7 -7 -7 ------------- Run | Yrd Mat Min Mat Min Exi Min Mat Fac Sto Rec Turns Passed 12998 | 111 1661 463 2222 764 449 857 2216 1857 1805 593 Spaces Moved 6371 | 77 834 213 1192 487 282 534 952 781 772 247 Core 12 | 12 . . . . . . . . . . Treads 1 | 1 . . . . . . . . . . Legs . | . . . . . . . . . . . Wheels 6358 | 64 834 213 1192 487 282 534 952 781 772 247 Hover . | . . . . . . . . . . . Flight . | . . . . . . . . . . . Fastest Speed 50 | 50 90 135 124 150 135 150 150 145 150 150 Average Speed 150 | 94 145 183 141 150 141 150 157 163 152 150 Slowest Speed 210 | 160 195 195 210 150 150 150 210 165 165 150 Overloaded Moves . | . . . . . . . . . . . Propulsion Burnouts . | . . . . . . . . . . . Robots Hopped . | . . . . . . . . . . . Potential Cave-ins . | . . . . . . . . . . . Cave-ins Triggered . | . . . . . . . . . . . Exploration Rate (%) 65 | 4 94 47 96 95 71 97 88 22 86 23 Regions Visited 10 Branch Regions 6 Pre-discovered Areas 10 | . 1 . 4 2 1 . 2 . . . Known Exits Taken 6 | . . 1 1 . . 1 1 1 1 . Unknown Exits Taken 4 | 1 1 . . 1 1 . . . . . Scrap Searched 5 | . . 1 . 3 . 1 . . . . Spaces Dug 60 | . 2 . . . . 56 . 2 . . Terrain Destroyed 198 | . 2 . 41 . . 56 35 22 14 28 Melee . | . . . . . . . . . . . Projectile 21 | . 2 . . . . . 11 5 3 . AOE 177 | . . . 41 . . 56 24 17 11 28 Terrain Rammed . | . . . . . . . . . . . Walls Destroyed . | . . . . . . . . . . . Machines Disabled . | . . . . . . . . . . . Actions | -11 -10 -10 -9 -9 -9 -8 -8 -7 -7 -7 --------- Run | Yrd Mat Min Mat Min Exi Min Mat Fac Sto Rec Total 8678 | 102 1200 274 1581 516 329 560 1363 1189 1136 428 Wait 1188 | 5 249 49 166 21 38 2 158 220 136 144 Move 6361 | 76 833 212 1191 486 281 533 951 780 771 247 Hop . | . . . . . . . . . . . Pick Up 127 | 9 27 2 17 1 1 . 25 18 26 1 Fast Attach 58 | 5 5 . 10 . . . 7 12 17 2 Attach 54 | 2 2 2 5 . . . 17 7 16 3 Detach 7 | . . . . . . . 1 2 3 1 Swap 91 | . 13 3 16 2 3 9 16 14 12 3 Drop 122 | . 17 1 21 1 2 1 27 22 26 4 Fire 563 | 5 54 5 83 3 . 15 161 95 120 22 Melee 6 | . . . . . 4 . . . 1 1 Ram . | . . . . . . . . . . . Kick . | . . . . . . . . . . . Crush . | . . . . . . . . . . . Escape Stasis 8 | . . . . . . . . . 8 . Rewire . | . . . . . . . . . . . Trap 93 | . . . 72 2 . . . 19 . . Miscellaneous . | . . . . . . . . . . . Route ------- -11/Scrapyard -10/Materials (discovered 5 exits: *Mat x3 / *Min / [*Sub]) -10/Mines (discovered 2 exits: *Mat x2) -9/Materials (discovered 4 exits: *Mat x3 / *Min) -9/Mines (discovered 3 exits: *Mat x2 / *Exi) -9/Exiles (discovered 2 exits: [*Min x2]) -8/Mines (discovered 2 exits: *Mat x2) -8/Materials (discovered 3 exits: *Fac x3) -7/Factory (discovered 5 exits: *Fac x3 / *Sto / Low) -7/Storage (discovered 2 exits: *Fac / *Rec) -7/Recycling (discovered 1 exit: Fac) History --------- Turn | Location | Event 34 | -11/Scrapyard | Discovered new exit (range 15) 112 | -11/Scrapyard | Entered Materials 312 | -10/Materials | Build established: Mutant 382 | -10/Materials | Discovered new exit (range 16) 627 | -10/Materials | Discovered new exit (range 17) 708 | -10/Materials | Discovered new exit (range 8) 1012 | -10/Materials | Derelicts attacked the area 1158 | -10/Materials | Core integrity fell below 50% 1184 | -10/Materials | Lost 3 parts (1p2w) 1232 | -10/Materials | Discovered new exit (range 15) 1574 | -10/Materials | Discovered new exit (range 10) 1614 | -10/Materials | Learned Storage security intel 1649 | -10/Materials | Loaded intel: 8 trap records 1676 | -10/Materials | Learned location of Mines (-9) 1691 | -10/Materials | Learned 2 Storage zone layouts 1697 | -10/Materials | Learned 4 Subcaves zone layouts 1714 | -10/Materials | Learned Storage trap positions 1773 | -10/Materials | Entered Mines 1774 | -10/Mines | Identified exit to Materials 1783 | -10/Mines | Assisted by bots powering up and referring to "LRC-V3" 1830 | -10/Mines | Learned Materials trap positions 1992 | -10/Mines | Met a Derelict who couldn't figure out how to use a Trap Extractor 2134 | -10/Mines | Assembled infested the area 2139 | -10/Mines | Assisted by a Guerilla fighting off Assembled 2200 | -10/Mines | Lost 4 allies 2236 | -10/Mines | Entered Materials 2236 | -9/Materials | Evolved 2 slots: Utility x2 2237 | -9/Materials | Loaded intel: 15 trap records 2536 | -9/Materials | Discovered new exit (range 7) 2540 | -9/Materials | Build established: Scavenger-Mutant 2617 | -9/Materials | Repaired Corrupted Imp. Trap Extractor 3069 | -9/Materials | Discovered new exit (range 18) 3075 | -9/Materials | Learned location of Zion (-6) 3181 | -9/Materials | Identified exit to Materials 3219 | -9/Materials | Learned Storage garrison access intel 3261 | -9/Materials | Learned Storage interactive machine intel 3283 | -9/Materials | Learned location of Storage (-7) 3308 | -9/Materials | Learned 4 Recycling zone layouts 3345 | -9/Materials | Learned location of 1 exit from Storage 3478 | -9/Materials | Identified exit to Mines 3499 | -9/Materials | Build established: Mutant 3799 | -9/Materials | Discovered exit to Materials (range 5) 4399 | -9/Materials | Repaired Hvy. Assault Rifle 4458 | -9/Materials | Entered Mines 4479 | -9/Mines | Met a Derelict bent on vengeance 4506 | -9/Mines | Found a hidden stash of uninstalled traps 4640 | -9/Mines | Escorted by a lone wolf Derelict 4683 | -9/Mines | Deemed a non-threat by the Exiles lab entrance 4683 | -9/Mines | Discovered new exit (range 5) 4788 | -9/Mines | Discovered exit to Materials (range 5) 4833 | -9/Mines | Discovered exit to Materials (range 14) 4964 | -9/Mines | Received a Rocket Launcher from a helpful Derelict 5041 | -9/Mines | Received a Mining Laser from a helpful Derelict 5222 | -9/Mines | Entered Exiles 5222 | -9/Exiles | Accompanied by 2 allies 5242 | -9/Exiles | Discovered new exit (range 16) 5260 | -9/Exiles | Met 8R-AWN 5286 | -9/Exiles | Met EX-HEX 5334 | -9/Exiles | Met EX-DEC 5407 | -9/Exiles | Met EX-BIN 5479 | -9/Exiles | Aligned with FarCom system 5480 | -9/Exiles | Given EX-Vault access code 5511 | -9/Exiles | Opened EX-Vault 5525 | -9/Exiles | Found Firepult 5557 | -9/Exiles | Warned to stay clear of 0b10 Research branches 5576 | -9/Exiles | Exiles lab attacked by MAIN.C 5652 | -9/Exiles | Discovered new exit (range 15) 5671 | -9/Exiles | Left Exiles lab with Firepult 5671 | -9/Exiles | Entered Mines 5734 | -8/Mines | Discovered exit to Materials (range 10) 5905 | -8/Mines | Discovered exit to Materials (range 7) 6528 | -8/Mines | Entered Materials 6528 | -8/Materials | Evolved 2 slots: Propulsion x1, Weapon x1 6837 | -8/Materials | Build established: Skirmisher 7226 | -8/Materials | Garrison activated, responded to threat 7347 | -8/Materials | Destroyed 16 combat bots 7676 | -8/Materials | Build established: Scavenger-Skirmisher 7760 | -8/Materials | Discovered new exit (range 5) 7768 | -8/Materials | Lost 3 parts (2n1w) 7940 | -8/Materials | Repaired Adv. EMP Blaster 8046 | -8/Materials | Discovered new exit (range 16) 8088 | -8/Materials | Identified exit to Factory 8121 | -8/Materials | Learned location of 2 exits from Factory 8142 | -8/Materials | Learned 12 Factory zone layouts 8156 | -8/Materials | Learned location of 1 exit from Lower Caves 8157 | -8/Materials | Learned Storage stockpile data 8161 | -8/Materials | Learned Storage emergency access door positions 8202 | -8/Materials | Learned 4 Factory zone layouts 8398 | -8/Materials | Core integrity fell below 50% 8499 | -8/Materials | Sterilization system engaged 8499 | -8/Materials | Non-combat units ordered to evacuate 8599 | -8/Materials | Combat units ordered to evacuate 8744 | -8/Materials | Entered Factory 8744 | -7/Factory | Evolved 2 slots: Utility x2 8745 | -7/Factory | Identified exit to Storage 8746 | -7/Factory | Identified exit to Factory 8746 | -7/Factory | Identified exit to Lower Caves 9042 | -7/Factory | Fabricated Gauss Rifle (x2) 9128 | -7/Factory | Fabricated Arm. Wheel? 9144 | -7/Factory | First assault squad dispatched 9219 | -7/Factory | Repaired Arm. Treads 9243 | -7/Factory | Repaired Rnf. Deuterium Engine 10191 | -7/Factory | Repaired Arm. Treads 10243 | -7/Factory | Repaired Hrd. Heavy Armor Plating 10472 | -7/Factory | Repaired Hrd. Heavy Armor Plating 10601 | -7/Factory | Entered Storage 10603 | -7/Storage | Identified exit to Recycling 10604 | -7/Storage | Loaded intel: 16 trap records 10607 | -7/Storage | Loaded intel: 20 interactive machine locations 10608 | -7/Storage | Loaded intel: 1 garrison access location 11002 | -7/Storage | System corruption reached 10% 11106 | -7/Storage | Destroyed 8 combat bots 11111 | -7/Storage | Lost 4 parts (4u) 11243 | -7/Storage | Found Prototype Protection 11243 | -7/Storage | Identified Lgt. Regenerative Plating 11389 | -7/Storage | Build established: Scavenger-Tank 11401 | -7/Storage | First assault squad dispatched 11488 | -7/Storage | Core integrity fell below 50% 11873 | -7/Storage | Build established: Skirmisher 11964 | -7/Storage | Met 01-MTF 12227 | -7/Storage | Assisted by bots powering up and referring to "LRC-V3" 12406 | -7/Storage | Entered Recycling 12406 | -7/Recycling | Accompanied by 10 allies (01-MTF) 12406 | -7/Recycling | 1 ally did not survive the journey 12407 | -7/Recycling | Joined Warlord attack on 0b10 via Recycling 12407 | -7/Recycling | Identified exit to Factory 12488 | -7/Recycling | Scanned before Scraplab entrance 12512 | -7/Recycling | Angered Scraplab inhabitants 12527 | -7/Recycling | Build established: Commander-Skirmisher 12569 | -7/Recycling | Lost 9 allies 12801 | -7/Recycling | Found Prototype Device 12801 | -7/Recycling | Identified Scrap Engine 12910 | -7/Recycling | Build established: Skirmisher 12987 | -7/Recycling | Core integrity fell below 20% 12999 | -7/Recycling | Destroyed by 01-MTF with 01-MTF's Shockpuncher Last Messages --------------- 12988_ Penetrated by Thermabolt. 12988_ Imp. Assault Rifle destroyed. 12988_ Penetrated by Thermabolt. 12988_ Adv. Beam Rifle destroyed. 12990_ Penetrated by Thermabolt. 12990_ Prc. Assault Rifle destroyed. 12990_ Destroyed Prc. Assault Rifle. 12992_ Penetrated by Thermabolt. 12992_ Destroyed Mak. Cloaking Device. 12993_ The unstable cave ceiling collapses. 12994_ Penetrated by Thermabolt. 12994_ Thermabolt penetrates Earth. 12994_ Penetrated by Thermabolt. 12994_ Thermabolt penetrates Earth. 12994_ Thermabolt penetrates R-06 Scavenger. 12994_ R-06 Scavenger destroyed. 12996_ Penetrated by Thermabolt. 12997_ System corrupted: Heat flow error (+268). 12998_ U-05 Engineer lays Concrete. 12998_ Penetrated by Thermabolt. Map ----- +----------------------------------------------------+ | ??# """" """" ?????######### #??? #????????? | | ??# """" """" ?????+ #??? #????????? | | ??# """" """" ???????#### #???? #????????? | | ??# ??????????# #?????####????????? | | ??#########+##??????????# #?????????????????? | | ??????# #??????????#### #?????????????????? | | ??????# #?????????????# ##########????????? | | #######+## #?????????????# # #????????? | | # #?????????????# # """ #????????? | | + #?????????????# # Y" #????????? | | # #?????????????# # """ #????????? | | # #?????????????# %+ #????????? | | ???????????????????????????# # """ #????????? | | ???????????????????????????# # """ #????????? | | ???????????????????????????# # """ #????????? | | ???????????????????????????# # #????????? | | ???????????????????????????# ##+#+#####????????? | | ???????????????????????????# # #????????????? | | ???????????????????????????# # #?######?????? | | ???????????????????????????# # ### !#?????? | | ????????????????????????#### #%### =%#??###? | | ??????????????????????### ##u #%### [%####*## | | ??????????????????????# # / %*=%%* % # | | ??????????????????????# #####% ==##### # | | ???????????????# ###### %p #???# ! #???# # | | ?????????# =% [%*%* @h = #???# !=#???# # | | ????????????????####### ############???# # | | ??????????????????????# #?????#####+# | | ??????????????????????# #?????#"" | | ??????????????????????### #?????#"& | | ???????????????????????#r #?????#" | | ???????????????????????## #?????#"" | | ????????????????????????# #?????#"& | | ????????????????????????# #?????#" | | ????????????????????????# #?????#"X | | ????????????????????????# #?????#" | | ????????????????????????# #?????# "" | | + #??????????# #?????# """ | | # ########+##??????????# #?????####### | | # # ??????????##############???????????? | | + + ???????????????????????????????????? | | # # """"" """???????????????????????????????????? | | # # """"" """???????????????????????????????????? | | # + """"" """???????????????????????????????????? | | # ## ???????????????????????????????????? | | # ## "" """???????????????????????????????????? | | ## "T """???????????????????????????????????? | | #### "" """???????????????????????????????????? | | ???# ???????????????????????????????????? | | ???###########???????????????????????????????????? | +----------------------------------------------------+ Best States ------------- Heat Dissipation 62 Coolant Potential 65 Energy Generation 16 Energy Capacity 290 Matter Stores 300 Matter Capacity 300 Sight Range 20 Terrain Scan Density 10 Jamming Range 12 Armor Coverage 600 Resistance: KI 30 Core Shielding 20 Evasion (%) 42 Recoil Reduction 2 Offensive Hacking 10 Authchip Count 3 Trap Extractor Capacity 6 Item Schematics ----------------- Hcp. Storage Unit | -10/Materials | Hacked VTOL Module | -9/Materials | Hacked Hacking Suite | -9/Materials | Scanalyzed Imp. Light Armor Plating | -9/Materials | Scanalyzed Autogun | -9/Materials | Extracted Hrd. Light Armor Plating | -9/Materials | Extracted Hammer | -9/Materials | Extracted Trap Extractor | -9/Materials | Extracted Com. Wheel | -9/Materials | Extracted Shield Generator | -9/Materials | Extracted Cld. Ion Engine | -9/Materials | Extracted Lgt. Treads | -9/Materials | Extracted Shotgun | -9/Materials | Extracted Arm. Treads | -8/Materials | Hacked Arm. Wheel | -8/Materials | Hacked Imp. VTOL Module | -8/Materials | Scanalyzed Hvy. Assault Cannon | -8/Materials | Scanalyzed Carbon-fiber Leg | -8/Materials | Extracted Field Laser | -8/Materials | Extracted Imp. EM Shotgun | -8/Materials | Extracted Hrd. Heavy Armor Plating | -8/Materials | Scanalyzed Minigun | -8/Materials | Scanalyzed Transmission Jammer | -8/Materials | Scanalyzed Hvy. Ion Engine | -8/Materials | Scanalyzed Disposable Heat Sink | -8/Materials | Scanalyzed Cesium-ion Thruster | -8/Materials | Extracted Hvy. Armor Plating | -8/Materials | Extracted Huge Storage Unit | -8/Materials | Extracted Com. Matter Pod | -8/Materials | Extracted Imp. Terrain Scanner | -8/Materials | Extracted Lgt. Ion Engine | -8/Materials | Extracted Sml. Battery | -8/Materials | Extracted Imp. Weapon Shielding | -8/Materials | Extracted Hrd. Medium Armor Plating | -8/Materials | Extracted Matter Filter | -7/Factory | Extracted Corruption Screen | -7/Factory | Extracted Thunder Leg | -7/Storage | Hacked Med. Treads | -7/Storage | Hacked Lrn. Tractor Beam | -7/Storage | Hacked Robot Schematics ------------------ M-13 Machinist | -9/Materials | Hacked Fabricated ------------ Gauss Rifle | x2 | -7/Factory | Preloaded Arm. Wheel | x2 | -7/Factory Repaired ---------- Imp. Trap Extractor | 88% | -9/Materials | Corrupted Hvy. Assault Rifle | 25% | -9/Materials Adv. EMP Blaster | 62% | -8/Materials Arm. Treads | 22% | -7/Factory Rnf. Deuterium Engine | 25% | -7/Factory Arm. Treads | 9% | -7/Factory Hrd. Heavy Armor Plating | 70% | -7/Factory Hrd. Heavy Armor Plating | 51% | -7/Factory Alien Tech Used ----------------- None Achievements -------------- None Challenges ------------ None Game ------ Seed DisintegrationCommFrame Manual? 0 Play Time 02:12:44 Cumulative 780.0 hours Start 2025.08.10 @ 08:10:41 End 2025.08.10 @ 18:33:11 Sessions 3 Manual Loads 0 Difficulty Rogue Special Mode None Game No. 301 Rogue 297 Adventurer 4 Explorer 0 Win Type - Total 13 Types 8/1/1/1/0/1/0/0/0/1 Lore% 94 Gallery% 89 Achievement% 87 Wizard Run 0 Options --------- Layout 0 ASCII 0 Keyboard 0 Movement Numpad Keybinds 0 Fullscreen 2 Font 18/CogNarrow Map View 76x50 Zoom Use 0% Tactical HUD 1 Map Filters NONE Filters NONE Steam 1 RUN: 98953f17-d627-49e2-a6d1-07b3c9d77199